[Event "Late-Titled-Tuesday-Blitz-March-12-2024"]
[Site "Chess.com"]
[Date "2024.03.12"]
[Round "2"]
[White "Mbneu"]
[Black "Witik"]
[Result "0-1"]
[WhiteElo "2250"]
[BlackElo "2736"]
[TimeControl "180+1"]
[EndTime "14:17:25 PDT"]
[Termination "Witik won by resignation"]

1. d4 {[%clk 0:02:55.6]} 1... Nf6 {[%clk 0:03:00]} 2. c4 {[%clk 0:02:55.5]} 2...
e6 {[%clk 0:03:00]} 3. Nf3 {[%clk 0:02:52.9]} 3... Bb4+ {[%clk 0:02:59]} 4. Bd2
{[%clk 0:02:52.2]} 4... Qe7 {[%clk 0:02:57.9]} 5. g3 {[%clk 0:02:50.8]} 5... Nc6
{[%clk 0:02:58]} 6. Bg2 {[%clk 0:02:50]} 6... Bxd2+ {[%clk 0:02:57.5]} 7. Nbxd2
{[%clk 0:02:49.4]} 7... d6 {[%clk 0:02:57.2]} 8. Nf1 {[%clk 0:02:49.3]} 8... O-O
{[%clk 0:02:39.8]} 9. Ne3 {[%clk 0:02:48.9]} 9... e5 {[%clk 0:02:08.2]} 10. Nd5
{[%clk 0:02:48.6]} 10... Nxd5 {[%clk 0:01:58.8]} 11. cxd5 {[%clk 0:02:49.5]}
11... Nxd4 {[%clk 0:01:51.2]} 12. Nxd4 {[%clk 0:02:41.2]} 12... exd4 {[%clk
0:01:52.1]} 13. Qxd4 {[%clk 0:02:41.2]} 13... Re8 {[%clk 0:01:52.2]} 14. e3
{[%clk 0:02:40.6]} 14... Bd7 {[%clk 0:01:20.5]} 15. O-O {[%clk 0:02:36.8]} 15...
c5 {[%clk 0:01:18.6]} 16. dxc6 {[%clk 0:02:31.6]} 16... Bxc6 {[%clk 0:01:17.6]}
17. Rac1 {[%clk 0:02:27]} 17... Qd7 {[%clk 0:00:56.9]} 18. Rfd1 {[%clk
0:02:19.8]} 18... Red8 {[%clk 0:00:56.9]} 19. Bd5 {[%clk 0:02:14.8]} 19... a6
{[%clk 0:00:52.5]} 20. Rc3 {[%clk 0:02:09.8]} 20... Rac8 {[%clk 0:00:50.5]} 21.
Rdc1 {[%clk 0:02:08.9]} 21... h6 {[%clk 0:00:43.7]} 22. h4 {[%clk 0:01:55.8]}
22... Bxd5 {[%clk 0:00:39.3]} 23. Qxd5 {[%clk 0:01:54.7]} 23... Rxc3 {[%clk
0:00:39.8]} 24. Rxc3 {[%clk 0:01:54.3]} 24... Rc8 {[%clk 0:00:40.1]} 25. Rxc8+
{[%clk 0:01:28.9]} 25... Qxc8 {[%clk 0:00:40.2]} 26. Qxd6 {[%clk 0:01:11.8]}
26... Qc1+ {[%clk 0:00:39.8]} 27. Kg2 {[%clk 0:01:08.9]} 27... Qxb2 {[%clk
0:00:39.9]} 28. Qd8+ {[%clk 0:01:07.3]} 28... Kh7 {[%clk 0:00:39.8]} 29. Qd3+
{[%clk 0:01:06.1]} 29... Kg8 {[%clk 0:00:38]} 30. Qd8+ {[%clk 0:01:04.7]} 30...
Kh7 {[%clk 0:00:38.3]} 31. Qd3+ {[%clk 0:01:04.4]} 31... g6 {[%clk 0:00:22.2]}
32. Qd5 {[%clk 0:01:03.7]} 32... Kg7 {[%clk 0:00:19.6]} 33. e4 {[%clk
0:00:57.3]} 33... b5 {[%clk 0:00:15.2]} 34. e5 {[%clk 0:00:47.3]} 34... Qe2
{[%clk 0:00:14.9]} 35. Qd6 {[%clk 0:00:40.3]} 35... Qe4+ {[%clk 0:00:14.7]} 36.
Kg1 {[%clk 0:00:40.4]} 36... Qb1+ {[%clk 0:00:10]} 37. Kg2 {[%clk 0:00:39.8]}
37... Qxa2 {[%clk 0:00:10.1]} 38. Qf6+ {[%clk 0:00:39]} 38... Kg8 {[%clk
0:00:08.3]} 39. h5 {[%clk 0:00:38.6]} 39... Qe6 {[%clk 0:00:07.8]} 40. Qd8+
{[%clk 0:00:35]} 40... Kh7 {[%clk 0:00:07.6]} 41. hxg6+ {[%clk 0:00:33.9]} 41...
Qxg6 {[%clk 0:00:07.6]} 42. Qd6 {[%clk 0:00:29.9]} 42... Qe6 {[%clk 0:00:07.1]}
43. Qd3+ {[%clk 0:00:27.1]} 43... Kg7 {[%clk 0:00:07.3]} 44. Qe4 {[%clk
0:00:26.7]} 44... a5 {[%clk 0:00:06.9]} 45. f4 {[%clk 0:00:23.8]} 45... a4
{[%clk 0:00:06.8]} 46. f5 {[%clk 0:00:24.2]} 46... Qc4 {[%clk 0:00:07.2]} 47.
Kh3 {[%clk 0:00:24.7]} 47... Qxe4 {[%clk 0:00:06.6]} 0-1

[Event "Late-Titled-Tuesday-Blitz-March-12-2024"]
[Site "Chess.com"]
[Date "2024.03.12"]
[Round "2"]
[White "ITheOnlyME"]
[Black "DishonorOnYourCow"]
[Result "1-0"]
[WhiteElo "2395"]
[BlackElo "2553"]
[TimeControl "180+1"]
[EndTime "14:17:25 PDT"]
[Termination "ITheOnlyME won on time"]

1. d4 {[%clk 0:03:00.9]} 1... Nf6 {[%clk 0:02:57.8]} 2. Bf4 {[%clk 0:03:00.3]}
2... g6 {[%clk 0:02:57.8]} 3. Nc3 {[%clk 0:02:59.1]} 3... d5 {[%clk 0:02:57.8]}
4. e3 {[%clk 0:02:59.5]} 4... Bg7 {[%clk 0:02:57.7]} 5. h4 {[%clk 0:03:00.1]}
5... O-O {[%clk 0:02:56.7]} 6. h5 {[%clk 0:03:00.2]} 6... gxh5 {[%clk
0:02:50.4]} 7. Be2 {[%clk 0:02:50.9]} 7... Bg4 {[%clk 0:02:47.6]} 8. f3 {[%clk
0:02:47.1]} 8... Bf5 {[%clk 0:02:46.7]} 9. g4 {[%clk 0:02:35.2]} 9... Bg6 {[%clk
0:02:46.1]} 10. Be5 {[%clk 0:02:30]} 10... Nbd7 {[%clk 0:02:40.6]} 11. g5 {[%clk
0:02:26.6]} 11... Ne8 {[%clk 0:02:37]} 12. Bxg7 {[%clk 0:02:22.5]} 12... Nxg7
{[%clk 0:02:37.9]} 13. f4 {[%clk 0:02:23.4]} 13... e6 {[%clk 0:02:30.3]} 14. Nf3
{[%clk 0:02:23.8]} 14... c5 {[%clk 0:02:24.3]} 15. Ne5 {[%clk 0:02:18.4]} 15...
Nxe5 {[%clk 0:02:23]} 16. dxe5 {[%clk 0:02:16.2]} 16... d4 {[%clk 0:02:19.5]}
17. exd4 {[%clk 0:02:14.7]} 17... Qxd4 {[%clk 0:02:20]} 18. Qxd4 {[%clk
0:02:13.8]} 18... cxd4 {[%clk 0:02:20.9]} 19. Nb5 {[%clk 0:02:14.1]} 19... Rfd8
{[%clk 0:02:16.1]} 20. O-O-O {[%clk 0:02:14.2]} 20... Rac8 {[%clk 0:02:09.9]}
21. Bd3 {[%clk 0:02:14.7]} 21... a6 {[%clk 0:02:03.8]} 22. Nd6 {[%clk
0:02:06.4]} 22... Rc7 {[%clk 0:02:03.8]} 23. Be4 {[%clk 0:01:56.6]} 23... b5
{[%clk 0:01:26.9]} 24. Rxd4 {[%clk 0:01:47.7]} 24... Nf5 {[%clk 0:01:26.2]} 25.
Bxf5 {[%clk 0:01:45.4]} 25... exf5 {[%clk 0:01:09.5]} 26. a4 {[%clk 0:01:27.1]}
26... Rb8 {[%clk 0:00:46]} 27. axb5 {[%clk 0:01:24.1]} 27... axb5 {[%clk
0:00:46.9]} 28. Rb4 {[%clk 0:01:18.6]} 28... Ra7 {[%clk 0:00:41.7]} 29. Kd2
{[%clk 0:01:16]} 29... Ra4 {[%clk 0:00:38.6]} 30. Rxa4 {[%clk 0:01:02.8]} 30...
bxa4 {[%clk 0:00:39.5]} 31. Kc3 {[%clk 0:01:03.7]} 31... h6 {[%clk 0:00:35.3]}
32. gxh6 {[%clk 0:01:00.5]} 32... Kh7 {[%clk 0:00:35.3]} 33. b3 {[%clk
0:00:37.1]} 33... axb3 {[%clk 0:00:28.5]} 34. cxb3 {[%clk 0:00:37.3]} 34... Kxh6
{[%clk 0:00:29.4]} 35. b4 {[%clk 0:00:36]} 35... Rb6 {[%clk 0:00:21.2]} 36. Kc4
{[%clk 0:00:33.8]} 36... f6 {[%clk 0:00:20.6]} 37. Kc5 {[%clk 0:00:31.7]} 37...
Rb8 {[%clk 0:00:20]} 38. exf6 {[%clk 0:00:31.5]} 38... Be8 {[%clk 0:00:09.9]}
39. f7 {[%clk 0:00:27]} 39... Bd7 {[%clk 0:00:08.9]} 40. Ne8 {[%clk 0:00:20.7]}
40... Rxe8 {[%clk 0:00:02.2]} 41. fxe8=Q {[%clk 0:00:20.7]} 41... Bxe8 {[%clk
0:00:03.1]} 42. b5 {[%clk 0:00:20.3]} 42... Bxb5 {[%clk 0:00:01.9]} 43. Kxb5
{[%clk 0:00:20.7]} 1-0

[Event "Late-Titled-Tuesday-Blitz-March-12-2024"]
[Site "Chess.com"]
[Date "2024.03.12"]
[Round "2"]
[White "oskariot"]
[Black "dealshark"]
[Result "1-0"]
[WhiteElo "2761"]
[BlackElo "2345"]
[TimeControl "180+1"]
[EndTime "14:17:26 PDT"]
[Termination "oskariot won by resignation"]

1. e4 {[%clk 0:03:00.7]} 1... e5 {[%clk 0:03:00.4]} 2. Nf3 {[%clk 0:03:00.7]}
2... Nc6 {[%clk 0:03:01]} 3. Nc3 {[%clk 0:03:00.9]} 3... Nf6 {[%clk 0:03:00.9]}
4. h3 {[%clk 0:03:01.5]} 4... d5 {[%clk 0:02:59.6]} 5. exd5 {[%clk 0:03:01.6]}
5... Nxd5 {[%clk 0:03:00.5]} 6. Bb5 {[%clk 0:03:02.2]} 6... Nxc3 {[%clk
0:02:57.4]} 7. bxc3 {[%clk 0:03:03.1]} 7... Bd6 {[%clk 0:02:56.6]} 8. O-O {[%clk
0:03:02.5]} 8... O-O {[%clk 0:02:56.7]} 9. d4 {[%clk 0:03:02.3]} 9... exd4
{[%clk 0:02:55.2]} 10. cxd4 {[%clk 0:03:03.2]} 10... h6 {[%clk 0:02:50.3]} 11.
c4 {[%clk 0:03:03.2]} 11... a6 {[%clk 0:02:43.5]} 12. Ba4 {[%clk 0:03:03]} 12...
Qf6 {[%clk 0:02:33.6]} 13. Bb2 {[%clk 0:03:02.6]} 13... Qg6 {[%clk 0:02:20.8]}
14. c5 {[%clk 0:02:28.6]} 14... Bf4 {[%clk 0:02:07.7]} 15. Bc2 {[%clk 0:02:09]}
15... Qf6 {[%clk 0:02:07.2]} 16. Rb1 {[%clk 0:01:41.9]} 16... Rd8 {[%clk
0:01:30.3]} 17. d5 {[%clk 0:01:03.8]} 17... Ne5 {[%clk 0:01:28.6]} 18. Nxe5
{[%clk 0:00:57.7]} 18... Bxe5 {[%clk 0:01:29.5]} 19. Bxe5 {[%clk 0:00:58.5]}
19... Qxe5 {[%clk 0:01:30]} 20. Re1 {[%clk 0:00:59.4]} 20... Qf6 {[%clk
0:01:28.9]} 21. Qd3 {[%clk 0:00:47.3]} 21... g6 {[%clk 0:01:28.8]} 22. Qc4
{[%clk 0:00:47.5]} 22... Kg7 {[%clk 0:01:27.4]} 23. Rbd1 {[%clk 0:00:43.3]}
23... b5 {[%clk 0:01:25.9]} 24. Qb4 {[%clk 0:00:32.4]} 24... Bf5 {[%clk
0:01:24.5]} 25. Bb3 {[%clk 0:00:32.3]} 25... Re8 {[%clk 0:01:22.1]} 26. Rxe8
{[%clk 0:00:31.1]} 26... Rxe8 {[%clk 0:01:21.5]} 27. d6 {[%clk 0:00:32]} 27...
Rd8 {[%clk 0:01:18.5]} 28. dxc7 {[%clk 0:00:30.1]} 28... Rxd1+ {[%clk
0:01:19.4]} 29. Bxd1 {[%clk 0:00:29.1]} 29... Qe5 {[%clk 0:01:17.2]} 30. c6
{[%clk 0:00:21.2]} 30... Qxc7 {[%clk 0:01:14.1]} 31. Qc3+ {[%clk 0:00:21.3]}
31... Kg8 {[%clk 0:01:09.6]} 32. Bf3 {[%clk 0:00:21.8]} 32... a5 {[%clk
0:00:58.7]} 33. a3 {[%clk 0:00:21.7]} 33... Be6 {[%clk 0:00:56.6]} 34. Qc5
{[%clk 0:00:21.8]} 34... Bc4 {[%clk 0:00:54.9]} 35. Qd4 {[%clk 0:00:19]} 35...
Be6 {[%clk 0:00:38.8]} 36. h4 {[%clk 0:00:19.4]} 36... h5 {[%clk 0:00:38.5]} 37.
g3 {[%clk 0:00:19.7]} 37... Bc4 {[%clk 0:00:37.1]} 38. Qd7 {[%clk 0:00:19.6]}
38... Qe5 {[%clk 0:00:20.7]} 39. c7 {[%clk 0:00:19.7]} 39... Qe1+ {[%clk
0:00:20.1]} 40. Kh2 {[%clk 0:00:20.3]} 40... Qxf2+ {[%clk 0:00:20.4]} 41. Bg2
{[%clk 0:00:20.9]} 41... Kg7 {[%clk 0:00:15.9]} 42. c8=Q {[%clk 0:00:19.9]}
42... Bf1 {[%clk 0:00:15.8]} 43. Qc3+ {[%clk 0:00:18.2]} 43... Kh7 {[%clk
0:00:15.9]} 44. Qf3 {[%clk 0:00:17.6]} 1-0

[Event "Late-Titled-Tuesday-Blitz-March-12-2024"]
[Site "Chess.com"]
[Date "2024.03.12"]
[Round "2"]
[White "kingofthenil"]
[Black "David_ATM"]
[Result "1-0"]
[WhiteElo "2766"]
[BlackElo "2388"]
[TimeControl "180+1"]
[EndTime "14:17:27 PDT"]
[Termination "kingofthenil won on time"]

1. e4 {[%clk 0:03:00.9]} 1... e5 {[%clk 0:02:59.5]} 2. Nf3 {[%clk 0:03:00.5]}
2... Nc6 {[%clk 0:02:58.1]} 3. d4 {[%clk 0:03:00.5]} 3... d6 {[%clk 0:02:57.7]}
4. Bb5 {[%clk 0:02:56]} 4... exd4 {[%clk 0:02:49.3]} 5. Qxd4 {[%clk 0:02:53.9]}
5... Bd7 {[%clk 0:02:49.5]} 6. Bxc6 {[%clk 0:02:54]} 6... Bxc6 {[%clk
0:02:50.4]} 7. Nc3 {[%clk 0:02:53.1]} 7... Nf6 {[%clk 0:02:42.1]} 8. Bg5 {[%clk
0:02:52.6]} 8... Be7 {[%clk 0:02:42.1]} 9. O-O-O {[%clk 0:02:52.4]} 9... O-O
{[%clk 0:02:41]} 10. g4 {[%clk 0:02:45.1]} 10... Nxg4 {[%clk 0:02:23.6]} 11.
Bxe7 {[%clk 0:02:14.5]} 11... Qxe7 {[%clk 0:02:24.5]} 12. Rhg1 {[%clk
0:02:15.2]} 12... Ne5 {[%clk 0:02:23.8]} 13. Nd2 {[%clk 0:01:39.4]} 13... Qf6
{[%clk 0:02:06.6]} 14. Kb1 {[%clk 0:01:16.5]} 14... Kh8 {[%clk 0:01:50.9]} 15.
Rdf1 {[%clk 0:00:54.8]} 15... Ng6 {[%clk 0:01:35.6]} 16. Qxf6 {[%clk 0:00:53.2]}
16... gxf6 {[%clk 0:01:36.5]} 17. Nc4 {[%clk 0:00:52.3]} 17... Ne5 {[%clk
0:01:16.4]} 18. b3 {[%clk 0:00:43.6]} 18... Nxc4 {[%clk 0:01:04]} 19. bxc4
{[%clk 0:00:43.7]} 19... Rg8 {[%clk 0:01:04.4]} 20. Rg3 {[%clk 0:00:43.6]} 20...
Rae8 {[%clk 0:00:42.8]} 21. f3 {[%clk 0:00:25.1]} 21... Re5 {[%clk 0:00:42.8]}
22. Rfg1 {[%clk 0:00:23.6]} 22... Rxg3 {[%clk 0:00:38.2]} 23. hxg3 {[%clk
0:00:23.7]} 23... Rc5 {[%clk 0:00:38.8]} 24. Kb2 {[%clk 0:00:21.3]} 24... Rxc4
{[%clk 0:00:38.6]} 25. g4 {[%clk 0:00:18.8]} 25... Kg7 {[%clk 0:00:34.3]} 26.
Ne2 {[%clk 0:00:17.4]} 26... d5 {[%clk 0:00:22]} 27. Kb3 {[%clk 0:00:11.9]}
27... b5 {[%clk 0:00:17.3]} 28. Ng3 {[%clk 0:00:03.7]} 28... dxe4 {[%clk
0:00:12.8]} 29. Nf5+ {[%clk 0:00:04.1]} 29... Kf8 {[%clk 0:00:11.7]} 30. f4
{[%clk 0:00:05]} 30... Bd5 {[%clk 0:00:07.6]} 31. Ne3 {[%clk 0:00:05.5]} 31...
Rd4+ {[%clk 0:00:05.4]} 32. Kc3 {[%clk 0:00:06]} 32... Rc4+ {[%clk 0:00:02.6]}
33. Nxc4 {[%clk 0:00:05.6]} 33... Bxc4 {[%clk 0:00:03.5]} 34. a4 {[%clk
0:00:06.3]} 34... a6 {[%clk 0:00:02.8]} 35. axb5 {[%clk 0:00:06.5]} 35... axb5
{[%clk 0:00:03.7]} 36. Kd4 {[%clk 0:00:07.4]} 36... f5 {[%clk 0:00:03.2]} 37.
gxf5 {[%clk 0:00:07.9]} 37... Ke7 {[%clk 0:00:03.6]} 38. Kxe4 {[%clk 0:00:03.8]}
38... Kf6 {[%clk 0:00:02.7]} 39. Rh1 {[%clk 0:00:04.4]} 1-0

[Event "Late-Titled-Tuesday-Blitz-March-12-2024"]
[Site "Chess.com"]
[Date "2024.03.12"]
[Round "2"]
[White "Eliteplayer3"]
[Black "BardArtem"]
[Result "0-1"]
[WhiteElo "2262"]
[BlackElo "2741"]
[TimeControl "180+1"]
[EndTime "14:17:27 PDT"]
[Termination "BardArtem won by checkmate"]

1. e4 {[%clk 0:02:46.8]} 1... d5 {[%clk 0:02:51.1]} 2. exd5 {[%clk 0:02:46.5]}
2... Qxd5 {[%clk 0:02:52]} 3. d4 {[%clk 0:02:46.6]} 3... Nc6 {[%clk 0:02:51.3]}
4. Nf3 {[%clk 0:02:46.3]} 4... Bg4 {[%clk 0:02:51.5]} 5. Be2 {[%clk 0:02:46.5]}
5... O-O-O {[%clk 0:02:51.9]} 6. Nc3 {[%clk 0:02:45.8]} 6... Qd7 {[%clk
0:02:40.3]} 7. d5 {[%clk 0:02:42.4]} 7... Bxf3 {[%clk 0:02:36.9]} 8. Bxf3 {[%clk
0:02:40.9]} 8... Ne5 {[%clk 0:02:32.5]} 9. O-O {[%clk 0:02:40.1]} 9... Nf6
{[%clk 0:02:31.5]} 10. Qe2 {[%clk 0:02:35.4]} 10... Nxf3+ {[%clk 0:02:29.4]} 11.
Qxf3 {[%clk 0:02:36.3]} 11... Nxd5 {[%clk 0:02:25.9]} 12. Qxf7 {[%clk
0:02:36.3]} 12... Nxc3 {[%clk 0:02:23.9]} 13. bxc3 {[%clk 0:02:37.2]} 13... Qd5
{[%clk 0:02:24.2]} 14. Qxd5 {[%clk 0:02:33.7]} 14... Rxd5 {[%clk 0:02:25.1]} 15.
Be3 {[%clk 0:02:33.8]} 15... e6 {[%clk 0:02:22.8]} 16. Rfe1 {[%clk 0:02:32.6]}
16... Rg8 {[%clk 0:02:11.5]} 17. c4 {[%clk 0:02:24.4]} 17... Rd6 {[%clk
0:02:08.1]} 18. Bf4 {[%clk 0:02:15.5]} 18... Rc6 {[%clk 0:02:07.4]} 19. Re4
{[%clk 0:02:15.9]} 19... Bd6 {[%clk 0:02:01.2]} 20. Bxd6 {[%clk 0:02:12.4]}
20... Rxd6 {[%clk 0:02:02.1]} 21. Rae1 {[%clk 0:02:11.3]} 21... Kd7 {[%clk
0:01:59]} 22. f4 {[%clk 0:02:08.3]} 22... Rf8 {[%clk 0:01:58.8]} 23. g4 {[%clk
0:01:56.1]} 23... h6 {[%clk 0:01:45.1]} 24. c5 {[%clk 0:01:52.9]} 24... Rc6
{[%clk 0:01:42.6]} 25. f5 {[%clk 0:01:52.6]} 25... Rf6 {[%clk 0:01:31.8]} 26.
Re5 {[%clk 0:01:44.4]} 26... b6 {[%clk 0:01:10.6]} 27. cxb6 {[%clk 0:01:41.5]}
27... axb6 {[%clk 0:01:11.5]} 28. R1e2 {[%clk 0:01:39.7]} 28... exf5 {[%clk
0:01:09]} 29. gxf5 {[%clk 0:01:31]} 29... Kc8 {[%clk 0:01:03.4]} 30. Rg2 {[%clk
0:01:27.8]} 30... Rf7 {[%clk 0:01:02.2]} 31. Re6 {[%clk 0:01:15.8]} 31... Rc5
{[%clk 0:00:54.9]} 32. Reg6 {[%clk 0:01:11.7]} 32... Rcxf5 {[%clk 0:00:54.7]}
33. h3 {[%clk 0:01:08.7]} 33... Ra5 {[%clk 0:00:51.9]} 34. c3 {[%clk 0:01:02.2]}
34... Rf3 {[%clk 0:00:50.6]} 35. Rxg7 {[%clk 0:00:59.9]} 35... Rxc3 {[%clk
0:00:43.3]} 36. Kh2 {[%clk 0:00:59.9]} 36... Raa3 {[%clk 0:00:40.1]} 37. h4
{[%clk 0:00:45]} 37... Rh3+ {[%clk 0:00:37.9]} 38. Kg1 {[%clk 0:00:45]} 38...
Rac3 {[%clk 0:00:27.4]} 39. R2g4 {[%clk 0:00:38.8]} 39... Rc2 {[%clk 0:00:19.9]}
40. Rh7 {[%clk 0:00:32.3]} 40... Rd3 {[%clk 0:00:12.7]} 41. Kh1 {[%clk
0:00:30.6]} 41... Rxa2 {[%clk 0:00:10.4]} 42. Rxh6 {[%clk 0:00:30.2]} 42... b5
{[%clk 0:00:10.1]} 43. Rh5 {[%clk 0:00:27.4]} 43... b4 {[%clk 0:00:06.8]} 44.
Rb5 {[%clk 0:00:27.3]} 44... Rb2 {[%clk 0:00:03.7]} 45. h5 {[%clk 0:00:27.7]}
45... b3 {[%clk 0:00:04]} 46. Rg1 {[%clk 0:00:16.9]} 46... Rh3# {[%clk
0:00:03.6]} 0-1

[Event "Late-Titled-Tuesday-Blitz-March-12-2024"]
[Site "Chess.com"]
[Date "2024.03.12"]
[Round "2"]
[White "jk13"]
[Black "BogdanDeac"]
[Result "0-1"]
[WhiteElo "2692"]
[BlackElo "3058"]
[TimeControl "180+1"]
[EndTime "14:17:34 PDT"]
[Termination "BogdanDeac won by resignation"]

1. e4 {[%clk 0:03:00.9]} 1... c6 {[%clk 0:02:58.2]} 2. Nc3 {[%clk 0:03:01]} 2...
d5 {[%clk 0:02:57.1]} 3. Nf3 {[%clk 0:03:01.9]} 3... dxe4 {[%clk 0:02:57.4]} 4.
Nxe4 {[%clk 0:03:02.8]} 4... Nf6 {[%clk 0:02:57.9]} 5. Qe2 {[%clk 0:03:03.4]}
5... Na6 {[%clk 0:02:57.6]} 6. d3 {[%clk 0:03:01.5]} 6... Nc7 {[%clk 0:02:47.3]}
7. g3 {[%clk 0:03:00.2]} 7... Ne6 {[%clk 0:02:39.8]} 8. Bg2 {[%clk 0:02:57.5]}
8... g6 {[%clk 0:02:39.8]} 9. O-O {[%clk 0:02:51.8]} 9... Bg7 {[%clk 0:02:39.7]}
10. c3 {[%clk 0:02:47.5]} 10... O-O {[%clk 0:02:38.7]} 11. d4 {[%clk 0:02:44.3]}
11... Qc7 {[%clk 0:02:33.8]} 12. Re1 {[%clk 0:02:25.1]} 12... Re8 {[%clk
0:02:31.6]} 13. Bd2 {[%clk 0:02:20.1]} 13... b6 {[%clk 0:02:25.3]} 14. Ne5
{[%clk 0:02:13.6]} 14... Bb7 {[%clk 0:02:24.9]} 15. h4 {[%clk 0:01:58.6]} 15...
Rad8 {[%clk 0:02:20.2]} 16. Ng5 {[%clk 0:01:55]} 16... Nxg5 {[%clk 0:02:01.5]}
17. hxg5 {[%clk 0:01:34.4]} 17... Nd7 {[%clk 0:01:57.2]} 18. Nxf7 {[%clk
0:01:23.7]} 18... Kxf7 {[%clk 0:01:56.9]} 19. Qe6+ {[%clk 0:01:23.7]} 19... Kf8
{[%clk 0:01:57.2]} 20. Re3 {[%clk 0:01:13.9]} 20... c5 {[%clk 0:01:34.5]} 21. d5
{[%clk 0:00:57.7]} 21... Ne5 {[%clk 0:01:01.7]} 22. Re4 {[%clk 0:00:31.9]} 22...
Bc8 {[%clk 0:00:44]} 23. Rf4+ {[%clk 0:00:31.1]} 23... Bf6 {[%clk 0:00:43.9]}
24. d6 {[%clk 0:00:13.6]} 24... Bxe6 {[%clk 0:00:15.5]} 25. dxc7 {[%clk
0:00:13.6]} 25... Rxd2 {[%clk 0:00:16.1]} 26. gxf6 {[%clk 0:00:14.1]} 26... Rc8
{[%clk 0:00:15.4]} 27. fxe7+ {[%clk 0:00:13.4]} 27... Kxe7 {[%clk 0:00:15.8]}
28. Re1 {[%clk 0:00:14.1]} 28... Nd3 {[%clk 0:00:11.9]} 29. Rxe6+ {[%clk
0:00:14.4]} 29... Kxe6 {[%clk 0:00:11.8]} 30. Bh3+ {[%clk 0:00:15.1]} 30... Kd6
{[%clk 0:00:08.2]} 31. Rf6+ {[%clk 0:00:15.3]} 31... Kxc7 {[%clk 0:00:08.5]} 32.
Rf7+ {[%clk 0:00:13.8]} 32... Kb8 {[%clk 0:00:08.6]} 33. Bxc8 {[%clk 0:00:13.7]}
33... Kxc8 {[%clk 0:00:09.5]} 34. Rxa7 {[%clk 0:00:13.4]} 34... Rxb2 {[%clk
0:00:09]} 35. a4 {[%clk 0:00:13.7]} 35... Nxf2 {[%clk 0:00:08.8]} 36. Rxh7
{[%clk 0:00:14]} 36... Ne4 {[%clk 0:00:09.3]} 37. c4 {[%clk 0:00:13.8]} 37...
Nxg3 {[%clk 0:00:09.2]} 38. a5 {[%clk 0:00:14.3]} 38... bxa5 {[%clk 0:00:09.2]}
39. Rc7+ {[%clk 0:00:14]} 39... Kb8 {[%clk 0:00:06.2]} 40. Rxc5 {[%clk
0:00:12.6]} 40... a4 {[%clk 0:00:04.3]} 41. Ra5 {[%clk 0:00:13]} 41... Ra2
{[%clk 0:00:04.3]} 42. c5 {[%clk 0:00:13.6]} 42... Kc7 {[%clk 0:00:04.1]} 43.
Ra6 {[%clk 0:00:13.8]} 43... Ne4 {[%clk 0:00:03.7]} 44. Rxg6 {[%clk 0:00:12.7]}
44... Nxc5 {[%clk 0:00:03.9]} 45. Rg5 {[%clk 0:00:13.5]} 45... Nd7 {[%clk
0:00:04]} 46. Rg3 {[%clk 0:00:13.9]} 46... Nb6 {[%clk 0:00:04.2]} 47. Rc3+
{[%clk 0:00:14.6]} 47... Kb7 {[%clk 0:00:04.4]} 48. Rd3 {[%clk 0:00:15.5]} 48...
Ka6 {[%clk 0:00:04.9]} 49. Rd4 {[%clk 0:00:15.8]} 49... Kb5 {[%clk 0:00:05.3]}
50. Re4 {[%clk 0:00:16]} 50... Nc4 {[%clk 0:00:05.5]} 51. Re3 {[%clk 0:00:16.9]}
51... Nxe3 {[%clk 0:00:05.1]} 0-1